Workbook

Sheet Verteilung
A1: Simulation einmaliger Zerfall - Verteilungskurve | G1: Hinweis: | H1: Zunächst müssen mit der "Grafikskalierung" die Skalen beider Diagramm zur Deckung gebracht werden.
A2: Bitte zunächst mindestens einmal die "Simulation starten". | H2: Danach sind dann "Mittelwert" und "Standardabweichung" so einzustellen, dass die Gausskurve das Histogramm einhüllt.
A3: Anzahl N: | B3: 1000 | C3: (maximal 1.000)
A4: Zerfallswahrschkt l: | B4: 0.3
A5: Simulationsanzahl z: | B5: 20000 | C5: (zwischen 10 und 20.000)
B6: Simulations- | C6: Aktivität | D6: mögliche | E6: Zerfalls
B7: schritt | C7: A = -dN/dt | D7: Zerfallszahl | E7: häufigkeit
B8: 1 | C8: 300 | D8: 1 | E8: 0
B9: 2 | C9: 313 | D9: 2 | E9: 0
B10: 3 | C10: 322 | D10: 3 | E10: 0
B11: 4 | C11: 316 | D11: 4 | E11: 0
B12: 5 | C12: 271 | D12: 5 | E12: 0
B13: 6 | C13: 302 | D13: 6 | E13: 0
B14: 7 | C14: 321 | D14: 7 | E14: 0
B15: 8 | C15: 311 | D15: 8 | E15: 0
B16: 9 | C16: 308 | D16: 9 | E16: 0
B17: 10 | C17: 319 | D17: 10 | E17: 0
B18: 11 | C18: 301 | D18: 11 | E18: 0
B19: 12 | C19: 301 | D19: 12 | E19: 0
B20: 13 | C20: 295 | D20: 13 | E20: 0
B21: 14 | C21: 294 | D21: 14 | E21: 0
B22: 15 | C22: 309 | D22: 15 | E22: 0
B23: 16 | C23: 309 | D23: 16 | E23: 0
B24: 17 | C24: 302 | D24: 17 | E24: 0
B25: 18 | C25: 294 | D25: 18 | E25: 0
B26: 19 | C26: 284 | D26: 19 | E26: 0
B27: 20 | C27: 316 | D27: 20 | E27: 0
B28: 21 | C28: 320 | D28: 21 | E28: 0
B29: 22 | C29: 294 | D29: 22 | E29: 0
B30: 23 | C30: 284 | D30: 23 | E30: 0
B31: 24 | C31: 293 | D31: 24 | E31: 0
B32: 25 | C32: 312 | D32: 25 | E32: 0
B33: 26 | C33: 311 | D33: 26 | E33: 0
B34: 27 | C34: 326 | D34: 27 | E34: 0 | G34: xmin = | H34: 248 | L34: Grafikskalierung anpassen (nur falls nicht passend):
B35: 28 | C35: 299 | D35: 28 | E35: 0 | G35: bis | L35: Verschiebung | O35: Verschiebung oben/unten
B36: 29 | C36: 305 | D36: 29 | E36: 0 | G36: xmax = | H36: 366 | L36: links/rechts:
B37: 30 | C37: 325 | D37: 30 | E37: 0
B38: 31 | C38: 267 | D38: 31 | E38: 0 | L38: Streckung/Stauchung | O38: Streckung/Stauchung oben/unten
B39: 32 | C39: 312 | D39: 32 | E39: 0 | L39: links/rechts:
B40: 33 | C40: 283 | D40: 33 | E40: 0 | H40: Mittelwert x0 = | I40: 307
B41: 34 | C41: 306 | D41: 34 | E41: 0 | H41: Standardabweichung s = | I41: 14.65 | L41: HWB d = | M41: =2.3548*sigma -> 34.49782
B42: 35 | C42: 295 | D42: 35 | E42: 0
B43: 36 | C43: 280 | D43: 36 | E43: 0
B44: 37 | C44: 273 | D44: 37 | E44: 0
B45: 38 | C45: 299 | D45: 38 | E45: 0
B46: 39 | C46: 298 | D46: 39 | E46: 0
B47: 40 | C47: 278 | D47: 40 | E47: 0 | G47: Gauss-Funktionswerte
B48: 41 | C48: 319 | D48: 41 | E48: 0 | G48: x | H48: g(x)
A49: Weitere | B49: 42 | C49: 309 | D49: 42 | E49: 0 | G49: =xmin -> 248 | H49: =1/SQRT(2*3.14159)/sigma*EXP(-(G49-x0)*(G49-x0)/2/sigma/sigma) -> 8.186973938e-06 | J49: Weitere
A50: Zeilen | B50: 43 | C50: 323 | D50: 43 | E50: 0 | G50: =G49+0.1 -> 248.1 | H50: 8.414960876e-06 | J50: Zeilen
B51: 44 | C51: 288 | D51: 44 | E51: 0 | G51: 248.2 | H51: 8.648893695e-06
B52: 45 | C52: 300 | D52: 45 | E52: 0 | G52: 248.3 | H52: 8.888915585e-06
B53: 46 | C53: 303 | D53: 46 | E53: 0 | G53: 248.4 | H53: 9.135172852e-06
B54: 47 | C54: 326 | D54: 47 | E54: 0 | G54: 248.5 | H54: 9.387814975e-06
B55: 48 | C55: 297 | D55: 48 | E55: 0 | G55: 248.6 | H55: 9.646994666e-06
B56: 49 | C56: 295 | D56: 49 | E56: 0 | G56: =G55+0.1 -> 248.7 | H56: 9.912867929e-06
B57: 50 | C57: 317 | D57: 50 | E57: 0 | G57: 248.8 | H57: 1.018559412e-05
B58: 51 | C58: 285 | D58: 51 | E58: 0 | G58: 248.9 | H58: 1.046533603e-05
B59: 52 | C59: 343 | D59: 52 | E59: 0 | G59: 249 | H59: 1.07522599e-05
B60: 53 | C60: 288 | D60: 53 | E60: 0 | G60: 249.1 | H60: 1.104653553e-05
B61: 54 | C61: 330 | D61: 54 | E61: 0 | G61: 249.2 | H61: 1.134833635e-05
B62: 55 | C62: 305 | D62: 55 | E62: 0 | G62: 249.3 | H62: 1.165783943e-05
B63: 56 | C63: 297 | D63: 56 | E63: 0 | G63: 249.4 | H63: =1/SQRT(2*3.14159)/sigma*EXP(-(G63-x0)*(G63-x0)/2/sigma/sigma) -> 1.19752256e-05
B64: 57 | C64: 315 | D64: 57 | E64: 0 | G64: 249.5 | H64: 1.230067951e-05
B65: 58 | C65: 343 | D65: 58 | E65: 0 | G65: 249.6 | H65: 1.263438967e-05
B66: 59 | C66: 301 | D66: 59 | E66: 0 | G66: 249.7 | H66: 1.297654856e-05
B67: 60 | C67: 298 | D67: 60 | E67: 0 | G67: 249.8 | H67: 1.332735266e-05
B68: 61 | C68: 300 | D68: 61 | E68: 0 | G68: 249.9 | H68: 1.368700256e-05
B69: 62 | C69: 316 | D69: 62 | E69: 0 | G69: 250 | H69: 1.405570299e-05
B70: 63 | C70: 291 | D70: 63 | E70: 0 | G70: 250.1 | H70: 1.443366294e-05
B71: 64 | C71: 321 | D71: 64 | E71: 0 | G71: 250.2 | H71: 1.482109571e-05
B72: 65 | C72: 292 | D72: 65 | E72: 0 | G72: 250.3 | H72: 1.521821898e-05
B73: 66 | C73: 319 | D73: 66 | E73: 0 | G73: 250.4 | H73: 1.562525491e-05
B74: 67 | C74: 310 | D74: 67 | E74: 0 | G74: 250.5 | H74: 1.604243018e-05
B75: 68 | C75: 307 | D75: 68 | E75: 0 | G75: 250.6 | H75: 1.646997611e-05
B76: 69 | C76: 295 | D76: 69 | E76: 0 | G76: 250.7 | H76: 1.690812872e-05
B77: 70 | C77: 266 | D77: 70 | E77: 0 | G77: 250.8 | H77: 1.73571288e-05
B78: 71 | C78: 297 | D78: 71 | E78: 0 | G78: 250.9 | H78: 1.781722203e-05
B79: 72 | C79: 278 | D79: 72 | E79: 0 | G79: 251 | H79: 1.8288659e-05
B80: 73 | C80: 310 | D80: 73 | E80: 0 | G80: 251.1 | H80: 1.877169535e-05
B81: 74 | C81: 335 | D81: 74 | E81: 0 | G81: 251.2 | H81: 1.926659185e-05
B82: 75 | C82: 312 | D82: 75 | E82: 0 | G82: 251.3 | H82: 1.977361444e-05
B83: 76 | C83: 308 | D83: 76 | E83: 0 | G83: 251.4 | H83: 2.029303437e-05
B84: 77 | C84: 299 | D84: 77 | E84: 0 | G84: 251.5 | H84: 2.082512827e-05
B85: 78 | C85: 288 | D85: 78 | E85: 0 | G85: 251.6 | H85: 2.13701782e-05
B86: 79 | C86: 303 | D86: 79 | E86: 0 | G86: 251.7 | H86: 2.192847183e-05
B87: 80 | C87: 273 | D87: 80 | E87: 0 | G87: 251.8 | H87: 2.250030242e-05
B88: 81 | C88: 302 | D88: 81 | E88: 0 | G88: 251.9 | H88: 2.3085969e-05
B89: 82 | C89: 291 | D89: 82 | E89: 0 | G89: 252 | H89: 2.368577644e-05
B90: 83 | C90: 283 | D90: 83 | E90: 0 | G90: 252.1 | H90: 2.430003551e-05
B91: 84 | C91: 305 | D91: 84 | E91: 0 | G91: 252.2 | H91: 2.492906301e-05
B92: 85 | C92: 283 | D92: 85 | E92: 0 | G92: 252.3 | H92: 2.557318186e-05
B93: 86 | C93: 297 | D93: 86 | E93: 0 | G93: 252.4 | H93: 2.62327212e-05
B94: 87 | C94: 318 | D94: 87 | E94: 0 | G94: 252.5 | H94: 2.690801648e-05
B95: 88 | C95: 308 | D95: 88 | E95: 0 | G95: 252.6 | H95: 2.759940954e-05
B96: 89 | C96: 299 | D96: 89 | E96: 0 | G96: 252.7 | H96: 2.830724877e-05
B97: 90 | C97: 276 | D97: 90 | E97: 0 | G97: 252.8 | H97: 2.903188916e-05
B98: 91 | C98: 292 | D98: 91 | E98: 0 | G98: 252.9 | H98: 2.97736924e-05
B99: 92 | C99: 301 | D99: 92 | E99: 0 | G99: 253 | H99: 3.053302703e-05
B100: 93 | C100: 314 | D100: 93 | E100: 0 | G100: 253.1 | H100: 3.131026849e-05
B101: 94 | C101: 282 | D101: 94 | E101: 0 | G101: 253.2 | H101: 3.210579928e-05
B102: 95 | C102: 295 | D102: 95 | E102: 0 | G102: 253.3 | H102: 3.2920009e-05
B103: 96 | C103: 307 | D103: 96 | E103: 0 | G103: 253.4 | H103: 3.375329453e-05
B104: 97 | C104: 292 | D104: 97 | E104: 0 | G104: 253.5 | H104: 3.460606009e-05
B105: 98 | C105: 313 | D105: 98 | E105: 0 | G105: 253.6 | H105: 3.547871738e-05
B106: 99 | C106: 306 | D106: 99 | E106: 0 | G106: 253.7 | H106: 3.637168564e-05
B107: 100 | C107: 301 | D107: 100 | E107: 0 | G107: 253.8 | H107: 3.728539185e-05
B108: 101 | C108: 287 | D108: 101 | E108: 0 | G108: 253.9 | H108: 3.822027073e-05
B109: 102 | C109: 300 | D109: 102 | E109: 0 | G109: 254 | H109: 3.917676497e-05
B110: 103 | C110: 314 | D110: 103 | E110: 0 | G110: 254.1 | H110: 4.015532527e-05
B111: 104 | C111: 314 | D111: 104 | E111: 0 | G111: 254.2 | H111: 4.115641045e-05
B112: 105 | C112: 316 | D112: 105 | E112: 0 | G112: 254.3 | H112: 4.218048763e-05
B113: 106 | C113: 301 | D113: 106 | E113: 0 | G113: 254.4 | H113: =1/SQRT(2*3.14159)/sigma*EXP(-(G113-x0)*(G113-x0)/2/sigma/sigma) -> 4.322803229e-05
B114: 107 | C114: 295 | D114: 107 | E114: 0 | G114: 254.5 | H114: 4.429952842e-05
B115: 108 | C115: 287 | D115: 108 | E115: 0 | G115: =G114+0.1 -> 254.6 | H115: 4.539546861e-05
B116: 109 | C116: 293 | D116: 109 | E116: 0 | G116: 254.7 | H116: 4.65163542e-05
B117: 110 | C117: 286 | D117: 110 | E117: 0 | G117: 254.8 | H117: 4.766269541e-05
B118: 111 | C118: 295 | D118: 111 | E118: 0 | G118: 254.9 | H118: 4.883501141e-05
B119: 112 | C119: 318 | D119: 112 | E119: 0 | G119: 255 | H119: 5.00338305e-05
B120: 113 | C120: 293 | D120: 113 | E120: 0 | G120: 255.1 | H120: 5.125969021e-05
B121: 114 | C121: 290 | D121: 114 | E121: 0 | G121: 255.2 | H121: 5.251313741e-05
B122: 115 | C122: 301 | D122: 115 | E122: 0 | G122: 255.3 | H122: 5.379472847e-05
B123: 116 | C123: 311 | D123: 116 | E123: 0 | G123: 255.4 | H123: 5.510502935e-05
B124: 117 | C124: 268 | D124: 117 | E124: 0 | G124: 255.5 | H124: 5.644461578e-05
B125: 118 | C125: 303 | D125: 118 | E125: 0 | G125: 255.6 | H125: 5.781407333e-05
B126: 119 | C126: 300 | D126: 119 | E126: 0 | G126: 255.7 | H126: 5.921399757e-05
B127: 120 | C127: 303 | D127: 120 | E127: 0 | G127: 255.8 | H127: 6.064499419e-05
B128: 121 | C128: 328 | D128: 121 | E128: 0 | G128: 255.9 | H128: 6.210767915e-05
B129: 122 | C129: 323 | D129: 122 | E129: 0 | G129: 256 | H129: 6.36026788e-05
B130: 123 | C130: 323 | D130: 123 | E130: 0 | G130: 256.1 | H130: 6.513062998e-05
B131: 124 | C131: 294 | D131: 124 | E131: 0 | G131: 256.2 | H131: 6.669218023e-05
B132: 125 | C132: 309 | D132: 125 | E132: 0 | G132: 256.3 | H132: 6.828798783e-05
B133: 126 | C133: 284 | D133: 126 | E133: 0 | G133: 256.4 | H133: 6.991872203e-05
B134: 127 | C134: 291 | D134: 127 | E134: 0 | G134: 256.5 | H134: 7.158506309e-05
B135: 128 | C135: 316 | D135: 128 | E135: 0 | G135: 256.6 | H135: 7.328770249e-05
B136: 129 | C136: 301 | D136: 129 | E136: 0 | G136: 256.7 | H136: 7.502734303e-05
B137: 130 | C137: 291 | D137: 130 | E137: 0 | G137: 256.8 | H137: 7.6804699e-05
B138: 131 | C138: 288 | D138: 131 | E138: 0 | G138: 256.9 | H138: 7.862049625e-05
B139: 132 | C139: 316 | D139: 132 | E139: 0 | G139: 257 | H139: 8.04754724e-05
B140: 133 | C140: 313 | D140: 133 | E140: 0 | G140: 257.1 | H140: 8.237037695e-05
B141: 134 | C141: 314 | D141: 134 | E141: 0 | G141: 257.2 | H141: 8.430597141e-05
B142: 135 | C142: 311 | D142: 135 | E142: 0 | G142: 257.3 | H142: 8.628302946e-05
B143: 136 | C143: 301 | D143: 136 | E143: 0 | G143: 257.4 | H143: 8.830233705e-05
B144: 137 | C144: 305 | D144: 137 | E144: 0 | G144: 257.5 | H144: 9.036469261e-05
B145: 138 | C145: 298 | D145: 138 | E145: 0 | G145: 257.6 | H145: 9.247090712e-05
B146: 139 | C146: 302 | D146: 139 | E146: 0 | G146: 257.7 | H146: 9.462180428e-05
B147: 140 | C147: 280 | D147: 140 | E147: 0 | G147: 257.8 | H147: 9.681822067e-05
B148: 141 | C148: 300 | D148: 141 | E148: 0 | G148: 257.9 | H148: 9.906100585e-05
B149: 142 | C149: 317 | D149: 142 | E149: 0 | G149: 258 | H149: 0.0001013510225
B150: 143 | C150: 285 | D150: 143 | E150: 0 | G150: =G149+0.1 -> 258.1 | H150: 0.0001036891467
B151: 144 | C151: 312 | D151: 144 | E151: 0 | G151: 258.2 | H151: 0.0001060762679
B152: 145 | C152: 312 | D152: 145 | E152: 0 | G152: 258.3 | H152: 0.000108513289
B153: 146 | C153: 299 | D153: 146 | E153: 0 | G153: 258.4 | H153: 0.0001110011267
B154: 147 | C154: 303 | D154: 147 | E154: 0 | G154: 258.5 | H154: 0.0001135407116
B155: 148 | C155: 307 | D155: 148 | E155: 0 | G155: 258.6 | H155: 0.0001161329884
B156: 149 | C156: 324 | D156: 149 | E156: 0 | G156: 258.7 | H156: 0.0001187789156
B157: 150 | C157: 318 | D157: 150 | E157: 0 | G157: 258.8 | H157: 0.0001214794662
B158: 151 | C158: 280 | D158: 151 | E158: 0 | G158: 258.9 | H158: 0.0001242356278
B159: 152 | C159: 315 | D159: 152 | E159: 0 | G159: 259 | H159: 0.0001270484021
B160: 153 | C160: 280 | D160: 153 | E160: 0 | G160: 259.1 | H160: 0.000129918806
B161: 154 | C161: 295 | D161: 154 | E161: 0 | G161: 259.2 | H161: 0.0001328478709
B162: 155 | C162: 306 | D162: 155 | E162: 0 | G162: 259.3 | H162: 0.0001358366434
B163: 156 | C163: 286 | D163: 156 | E163: 0 | G163: 259.4 | H163: 0.0001388861851
B164: 157 | C164: 309 | D164: 157 | E164: 0 | G164: 259.5 | H164: 0.0001419975728
B165: 158 | C165: 310 | D165: 158 | E165: 0 | G165: 259.6 | H165: 0.000145171899
B166: 159 | C166: 315 | D166: 159 | E166: 0 | G166: 259.7 | H166: 0.0001484102715
B167: 160 | C167: 296 | D167: 160 | E167: 0 | G167: 259.8 | H167: 0.0001517138138
B168: 161 | C168: 290 | D168: 161 | E168: 0 | G168: 259.9 | H168: 0.0001550836654
B169: 162 | C169: 298 | D169: 162 | E169: 0 | G169: 260 | H169: 0.0001585209815
B170: 163 | C170: 301 | D170: 163 | E170: 0 | G170: 260.1 | H170: 0.0001620269337
B171: 164 | C171: 291 | D171: 164 | E171: 0 | G171: 260.2 | H171: 0.0001656027097
B172: 165 | C172: 292 | D172: 165 | E172: 0 | G172: 260.3 | H172: 0.0001692495133
B173: 166 | C173: 307 | D173: 166 | E173: 0 | G173: 260.4 | H173: 0.0001729685654
B174: 167 | C174: 290 | D174: 167 | E174: 0 | G174: 260.5 | H174: 0.0001767611029
B175: 168 | C175: 288 | D175: 168 | E175: 0 | G175: 260.6 | H175: 0.00018062838
B176: 169 | C176: 275 | D176: 169 | E176: 0 | G176: 260.7 | H176: 0.0001845716675
B177: 170 | C177: 324 | D177: 170 | E177: 0 | G177: 260.8 | H177: =1/SQRT(2*3.14159)/sigma*EXP(-(G177-x0)*(G177-x0)/2/sigma/sigma) -> 0.0001885922533
B178: 171 | C178: 297 | D178: 171 | E178: 0 | G178: 260.9 | H178: 0.0001926914425
B179: 172 | C179: 311 | D179: 172 | E179: 0 | G179: 261 | H179: 0.0001968705574
B180: 173 | C180: 289 | D180: 173 | E180: 0 | G180: 261.1 | H180: 0.0002011309379
B181: 174 | C181: 300 | D181: 174 | E181: 0 | G181: 261.2 | H181: 0.0002054739412
B182: 175 | C182: 292 | D182: 175 | E182: 0 | G182: 261.3 | H182: 0.0002099009424
B183: 176 | C183: 290 | D183: 176 | E183: 0 | G183: 261.4 | H183: 0.0002144133343
B184: 177 | C184: 307 | D184: 177 | E184: 0 | G184: 261.5 | H184: 0.0002190125276
B185: 178 | C185: 305 | D185: 178 | E185: 0 | G185: 261.6 | H185: 0.0002236999509
B186: 179 | C186: 303 | D186: 179 | E186: 0 | G186: 261.7 | H186: 0.0002284770512
B187: 180 | C187: 300 | D187: 180 | E187: 0 | G187: 261.8 | H187: 0.0002333452935
B188: 181 | C188: 280 | D188: 181 | E188: 0 | G188: 261.9 | H188: 0.0002383061615
B189: 182 | C189: 264 | D189: 182 | E189: 0 | G189: 262 | H189: 0.0002433611572
B190: 183 | C190: 315 | D190: 183 | E190: 0 | G190: 262.1 | H190: 0.0002485118011
B191: 184 | C191: 312 | D191: 184 | E191: 0 | G191: 262.2 | H191: 0.0002537596325
B192: 185 | C192: 304 | D192: 185 | E192: 0 | G192: 262.3 | H192: 0.0002591062096
B193: 186 | C193: 294 | D193: 186 | E193: 0 | G193: 262.4 | H193: 0.0002645531095
B194: 187 | C194: 298 | D194: 187 | E194: 0 | G194: 262.5 | H194: 0.0002701019282
B195: 188 | C195: 291 | D195: 188 | E195: 0 | G195: 262.6 | H195: 0.0002757542809
B196: 189 | C196: 300 | D196: 189 | E196: 0 | G196: 262.7 | H196: 0.0002815118019
B197: 190 | C197: 304 | D197: 190 | E197: 0 | G197: 262.8 | H197: 0.0002873761451
B198: 191 | C198: 307 | D198: 191 | E198: 0 | G198: 262.9 | H198: 0.0002933489836
B199: 192 | C199: 279 | D199: 192 | E199: 0 | G199: 263 | H199: 0.0002994320099
B200: 193 | C200: 293 | D200: 193 | E200: 0 | G200: 263.1 | H200: 0.0003056269362
... 19807 more rows
